bitfinex-derivatives/quotes_ETHF0:USTF0_20250130
["timestamp","ask_amount","ask_price","bid_price","bid_amount"]
[1738272649962,1.53975,3247.1,3246.4,0.00461808]
[1738272649963,0.61598,3246.7,3246.4,0.62063808]
[1738272650163,1.53975,3247.1,3246.4,0.00461808]
[1738272650360,0.61592,3247.0,3246.4,0.00461808]
[1738272650666,3.2078,3247.2,3246.4,0.00461808]
[1738272650971,0.61599,3246.7,3246.4,0.62063808]
[1738272651270,0.61599,3246.7,3246.5,0.616]
[1738272651569,1.53975,3247.1,3246.4,0.00461808]
[1738272651764,3.2078,3247.2,3246.4,0.00461808]
[1738272651961,1.53976,3247.1,3246.4,0.00461808]
[1738272652157,0.61601,3246.6,3246.4,0.00461808]
[1738272652365,0.61592,3247.0,3246.4,0.00461808]
[1738272652558,0.61601,3246.5,3246.4,0.00461808]
[1738272655068,0.61596,3246.8,3246.6,0.61598]
[1738272655371,0.61598,3246.7,3246.4,0.00461808]
[1738272655673,0.61598,3246.7,3246.6,0.61599]
[1738272655871,0.61601,3246.5,3246.4,0.00461808]
[1738272659973,5.61601,3246.5,3245.8,3.2078]
[1738272660269,5.61601,3246.5,3245.4,1.05]
[1738272660270,0.6162,3245.6,3245.4,4.2578]
[1738272660471,0.61625,3245.3,3245.1,0.61627]
[1738272660665,0.61625,3245.3,3245.2,0.61626]
[1738272660866,1.54042,3245.7,3245.0,3.2078]
[1738272661169,0.61627,3245.2,3245.1,0.61627]
[1738272661475,0.61625,3245.3,3245.1,0.61627]
[1738272661674,0.61628,3245.1,3245.0,3.21241808]
[1738272661974,0.61628,3245.1,3245.0,3.82871808]
[1738272662175,1.54046,3245.6,3245.0,3.82871808]
[1738272662474,0.61627,3245.2,3245.0,3.82869808]
[1738272662669,0.61625,3245.3,3245.1,0.61627]
[1738272662977,0.61627,3245.2,3245.0,3.82870808]
[1738272663271,0.61628,3245.1,3245.0,3.21241808]
[1738272663575,0.61628,3245.1,3245.0,3.82871808]
[1738272663777,1.54503808,3245.7,3245.0,3.82871808]
[1738272663972,1.54046,3245.6,3245.0,3.82871808]
[1738272664169,0.61627,3245.2,3245.0,3.82871808]
[1738272664475,1.54046,3245.6,3245.0,3.82871808]
[1738272664663,0.00461808,3245.7,3245.0,3.21241808]
[1738272664869,0.61628,3245.1,3245.0,0.00461808]
[1738272666075,3.53328,3245.1,3245.0,0.00461808]
[1738272667067,2.917,3245.1,3244.1,4.3185]
[1738272667274,0.61644,3244.3,3244.1,4.93496]
[1738272667469,0.61642,3244.4,3244.2,0.61644]
[1738272667671,4.45784,3244.8,3244.1,4.3185]
[1738272667874,0.61642,3244.4,3244.2,0.61644]
[1738272668068,4.45784,3244.8,3244.2,0.61644]
[1738272668269,4.45784,3244.8,3244.1,4.3185]
[1738272668475,4.45784,3244.8,3244.2,0.61643]
[1738272668669,2.917,3244.8,3244.1,4.3185]
[1738272669075,0.61641,3244.5,3244.2,0.61645]
[1738272669271,2.917,3244.8,3244.1,4.3185]
[1738272669477,3.53335,3244.8,3244.6,0.61636]
[1738272669779,0.61637,3244.6,3244.5,3.2078]
[1738272670772,0.61643,3244.4,3244.1,1.72716]
[1738272671175,5.50148,3244.8,3244.1,1.1107]
[1738272671384,0.61647,3244.1,3244.0,3.21241808]
[1738272674981,3.2078,3244.5,3244.0,3.21241808]
[1738272675182,1.0436,3244.8,3244.4,0.61641]
[1738272675486,0.61639,3244.5,3244.3,0.61642]
[1738272675983,0.61635,3244.8,3244.6,0.61637]
[1738272676282,0.61636,3244.7,3244.5,0.61638]
[1738272676470,0.61629,3245.1,3244.9,0.6163]
[1738272676673,0.61629,3245.1,3244.8,3.2078]
[1738272676978,0.61629,3245.1,3244.9,0.61632]
[1738272677281,0.6163,3245.0,3244.8,3.82412]
[1738272677681,0.6163,3245.0,3244.8,3.2078]
[1738272677983,0.6163,3245.0,3244.8,3.82413]
[1738272678181,0.61623,3245.4,3245.2,0.61625]
[1738272678378,0.61623,3245.4,3245.3,0.61624]
[1738272678580,0.61629,3245.1,3244.9,0.61631]
[1738272679083,0.6163,3245.0,3244.9,0.61631]
[1738272679272,1.54055,3245.5,3244.9,0.61631]
[1738272679273,0.61628,3245.1,3244.9,0.61632]
[1738272679877,0.61632,3244.9,3244.8,3.2078]
[1738272680479,0.6163,3245.0,3244.8,3.2078]
[1738272680680,3.2078,3245.4,3244.9,0.61632]
[1738272680881,0.61627,3245.2,3245.0,0.61629]
[1738272681074,1.54046,3245.6,3244.5,1.0852]
[1738272681279,1.54065,3245.2,3244.5,3.2078]
[1738272681480,0.61637,3244.6,3244.5,3.2078]
[1738272681679,1.54084,3244.8,3244.1,3.2078]
[1738272681887,0.61645,3244.2,3244.1,3.82427]
[1738272682087,0.61645,3244.2,3244.1,3.2078]
[1738272683182,0.61647,3244.1,3244.0,0.00461808]
[1738272683388,3.82427,3244.1,3244.0,0.00461808]
[1738272684382,0.61647,3244.1,3244.0,0.00461808]
[1738272685893,1.1066,3244.4,3244.0,0.00461808]
[1738272686198,0.61647,3244.1,3244.0,0.00461808]
[1738272687693,1.1066,3244.4,3244.0,0.00461808]
[1738272687889,0.61647,3244.1,3244.0,0.00461808]
[1738272688688,0.61646,3244.2,3244.0,0.62110808]
[1738272688887,0.61647,3244.1,3244.0,0.00461808]
[1738272689581,0.61645,3244.2,3244.0,0.62110808]
[1738272689786,1.1066,3244.4,3244.0,0.00461808]
[1738272689987,0.61647,3244.1,3244.0,0.00461808]
[1738272692595,3.82427,3244.1,3244.0,0.00461808]
[1738272695690,5.95747,3244.1,3244.0,0.00461808]
[1738272695895,0.6166,3243.4,3243.3,3.2078]
[1738272696202,1.54131,3243.9,3243.3,3.2078]
[1738272696393,1.54131,3243.9,3243.4,0.6166]
[1738272696593,1.54131,3243.9,3243.3,3.2078]
[1738272696794,0.61657,3243.6,3243.4,0.6166]
[1738272697094,0.00461808,3243.8,3243.3,3.2078]
[1738272697393,0.6166,3243.4,3243.3,3.2078]
[1738272697598,0.6166,3243.4,3243.3,3.82442]
[1738272697893,1.54595808,3243.8,3243.3,3.2078]
[1738272698094,0.61659,3243.5,3243.3,3.2078]
[1738272698298,0.61658,3243.6,3243.4,0.6166]
[1738272698496,0.00461808,3243.8,3243.7,0.61654]
[1738272699100,0.00461808,3243.8,3243.7,3.82434]
[1738272703305,0.62113808,3243.8,3243.7,3.2078]
[1738272703501,0.00461808,3243.8,3243.7,3.82434]
[1738272704103,0.62113808,3243.8,3243.7,3.82434]
[1738272704303,0.00461808,3243.8,3243.7,3.82434]
[1738272707297,4.74875,3244.6,3243.7,8.2078]
[1738272707298,3.2078,3244.6,3243.7,8.2078]
[1738272707496,1.1072,3244.7,3244.2,3.2078]
[1738272707697,3.2078,3245.2,3244.2,3.2078]
[1738272707902,1.5407,3245.1,3244.2,4.2861]
[1738272708103,1.5407,3245.1,3244.5,0.61639]
[1738272708303,1.5407,3245.1,3244.2,4.2861]
[1738272708505,0.61632,3244.9,3244.4,1.54101]
[1738272708703,0.61631,3245.0,3244.8,0.61632]
[1738272708904,0.61632,3244.9,3244.7,3.82414]
[1738272709106,0.61631,3245.0,3244.8,0.61633]
[1738272709803,0.00461808,3245.1,3244.7,3.82414]
[1738272710010,0.61633,3244.9,3244.7,3.82414]
[1738272710208,0.6163,3245.0,3244.8,0.61633]
[1738272710408,0.62090808,3245.1,3244.9,0.61631]
[1738272710607,0.6163,3245.0,3244.7,3.82414]
[1738272710904,0.61631,3245.0,3244.7,3.2078]
[1738272711102,0.00461808,3245.1,3244.7,3.2078]
[1738272711304,0.00461808,3245.1,3245.0,0.6163]
[1738272711508,0.00461808,3245.1,3244.7,3.2078]
[1738272711712,0.00461808,3245.1,3245.0,0.6163]
[1738272712008,0.00461808,3245.1,3244.9,0.6163]
[1738272712706,0.00461808,3245.1,3245.0,3.26787089]
[1738272713610,0.5383,3245.7,3245.0,7.65157089]
[1738272713802,3.2078,3246.4,3245.6,0.61618]
[1738272714003,0.5383,3246.3,3246.2,3.2078]
[1738272714212,0.5383,3246.3,3246.2,3.82387]
[1738272714403,0.5383,3246.3,3246.2,3.2078]
[1738272715309,0.5383,3246.3,3245.9,0.62073808]
[1738272715506,0.61608,3246.2,3245.9,0.00461808]
[1738272715710,0.61611,3246.0,3245.9,0.00461808]
[1738272716804,3.82391,3246.0,3245.9,0.00461808]
[1738272717614,0.61624,3245.3,3245.2,0.5289]
[1738272718007,2.65157089,3245.7,3245.2,0.5289]
[1738272718207,0.538,3245.6,3245.2,0.5289]
[1738272718609,1.1542,3245.6,3245.2,1.14515]
[1738272718913,0.538,3245.6,3245.2,1.14515]
[1738272719115,1.15419,3245.6,3245.2,1.14515]
[1738272719617,0.538,3245.6,3245.2,1.14515]
[1738272719816,1.15419,3245.6,3245.2,1.14515]
[1738272720319,0.61623,3245.4,3245.2,0.5289]
[1738272720615,0.61621,3245.5,3245.2,1.14516]
[1738272720828,0.61622,3245.4,3245.2,0.5289]
[1738272721115,0.61621,3245.5,3245.2,1.14516]
[1738272721315,0.61623,3245.4,3245.2,0.5289]
[1738272721511,0.538,3245.6,3245.1,0.00461808]
[1738272721711,0.61626,3245.2,3245.1,0.00461808]
[1738272722310,0.5073,3245.5,3245.1,0.00461808]
[1738272722710,0.61626,3245.2,3245.1,0.00461808]
[1738272728014,3.82406,3245.2,3245.1,0.00461808]
[1738272728338,0.61641,3244.5,3244.3,0.61643]
[1738272728620,0.502,3244.4,3244.3,0.61643]
[1738272728820,0.502,3244.4,3244.2,2.65157089]
[1738272729220,0.502,3244.4,3244.3,0.61643]
[1738272730619,1.11841,3244.4,3244.3,0.61643]
[1738272730923,0.502,3244.4,3244.3,0.61643]
[1738272733522,1.11841,3244.4,3244.3,0.61643]
[1738272733924,0.61643,3244.3,3244.2,2.65157089]
[1738272734322,0.61643,3244.3,3244.2,3.26802089]
[1738272734622,0.61643,3244.3,3244.2,2.65157089]
[1738272735419,0.61643,3244.3,3244.2,3.26802089]
[1738272736425,1.11842,3244.4,3244.3,0.61643]
[1738272736925,0.61643,3244.3,3244.2,3.26801089]
[1738272737325,0.502,3244.4,3244.2,2.65157089]
[1738272737621,0.502,3244.4,3244.3,0.61643]
[1738272738123,1.11841,3244.4,3244.3,0.61643]
[1738272738826,0.61643,3244.3,3244.2,3.26801089]
[1738272739620,1.11842,3244.4,3244.3,0.61643]
[1738272739821,0.502,3244.4,3244.3,0.61643]
[1738272740023,0.00461808,3244.6,3244.5,0.61639]
[1738272740227,0.00461808,3244.6,3244.5,6.47576089]
[1738272740729,0.00461808,3244.6,3244.5,3.82419]
[1738272741131,0.61639,3244.5,3244.2,0.61645]
[1738272741430,0.61641,3244.5,3244.1,3.2078]
[1738272741623,0.62099808,3244.6,3244.3,0.61641]
[1738272742029,0.00461808,3244.6,3244.3,0.61641]
[1738272742325,0.6164,3244.5,3244.3,0.61641]
[1738272742926,0.00461808,3244.6,3244.3,0.61641]
[1738272743132,0.00461808,3244.6,3244.1,3.2078]
[1738272743424,0.61645,3244.2,3244.1,3.2078]
[1738272743823,0.5242,3244.5,3244.1,3.2078]
[1738272744023,0.61641,3244.4,3244.2,0.61645]
[1738272744226,0.5242,3244.5,3244.1,3.2078]
[1738272744422,0.5328,3244.3,3244.1,3.2078]
[1738272744626,1.13785,3244.2,3244.1,3.2078]
[1738272744827,1.13785,3244.2,3244.0,0.00461808]
[1738272745126,0.5214,3244.2,3244.0,0.00461808]
[1738272745427,0.5214,3244.2,3244.1,0.61647]
[1738272746325,0.5214,3244.2,3244.0,0.00461808]
[1738272746524,0.61647,3244.1,3244.0,0.00461808]
[1738272750137,1.13785,3244.2,3244.1,0.61647]
[1738272750434,0.5214,3244.2,3244.1,0.61647]
[1738272751035,0.00461808,3244.6,3244.1,0.61647]
[1738272751036,0.00461808,3244.6,3244.5,0.61639]
[1738272751332,0.00461808,3244.6,3244.5,6.47576089]
[1738272757634,0.00461808,3244.6,3244.5,3.82419]
[1738272757935,0.62098808,3244.6,3244.5,3.82419]
[1738272758639,0.00461808,3244.6,3244.5,3.82419]
[1738272759334,0.62098808,3244.6,3244.5,3.82419]
[1738272759537,0.00461808,3244.6,3244.5,3.82419]
[1738272759738,0.62098808,3244.6,3244.5,3.82419]
[1738272760341,0.00461808,3244.6,3244.5,3.82419]
[1738272760740,0.62098808,3244.6,3244.5,3.82419]
[1738272761642,0.62098808,3244.6,3244.5,3.2078]
[1738272761941,0.62098808,3244.6,3244.5,3.82419]
[1738272762242,0.62098808,3244.6,3244.5,3.2078]
[1738272762440,0.62098808,3244.6,3244.5,3.82419]
[1738272763442,0.00461808,3244.6,3244.5,3.82419]
[1738272763642,0.00461808,3244.6,3244.5,6.47576089]
[1738272771751,0.62098808,3244.6,3244.5,3.2078]
[1738272772352,0.61647,3244.2,3244.1,3.82427]
[1738272773150,0.61645,3244.3,3244.2,0.61644]
[1738272773545,1.0193,3244.5,3244.0,0.00461808]
[1738272773748,0.61647,3244.1,3244.0,0.00461808]
[1738272778950,0.5053,3244.3,3243.3,5.85937089]
[1738272779256,0.6166,3243.4,3243.3,3.2078]
[1738272783353,0.6166,3243.4,3243.0,0.61977272]
[1738272783354,0.61666,3243.1,3243.0,0.00310272]
[1738272784651,2.19836,3243.1,3243.0,0.00310272]
[1738272784852,0.61677,3242.6,3242.1,2.65157089]
[1738272785059,1.54171,3243.0,3242.1,2.65157089]
[1738272785263,0.61678,3242.5,3242.3,0.6168]
[1738272785555,0.524,3242.4,3242.3,0.6168]
[1738272788052,0.524,3242.4,3242.1,2.65157089]
[1738272788556,1.14079,3242.4,3242.3,0.61681]
[1738272789450,0.524,3242.4,3242.3,0.61681]
[1738272792863,1.14079,3242.4,3242.3,0.61681]
[1738272793063,0.524,3242.4,3242.3,0.61681]
[1738272793563,0.00462528,3242.7,3242.3,0.61681]
[1738272793761,0.00462528,3242.7,3242.6,3.26832089]
[1738272794263,3.4062,3243.7,3242.6,7.65157089]
[1738272794456,0.61659,3243.5,3243.4,0.61659]
[1738272794864,0.5304,3243.6,3243.2,2.65157089]
[1738272795160,0.61659,3243.5,3243.2,2.65157089]
[1738272795359,0.5304,3243.6,3243.5,0.61658]
[1738272796556,1.14696,3243.6,3243.5,0.61658]
[1738272796958,0.5304,3243.6,3243.5,0.61658]
[1738272798761,0.00462528,3243.7,3243.5,2.65157089]
[1738272799063,0.00462528,3243.7,3243.6,4.33816]
[1738272811371,0.62116528,3243.7,3243.6,3.82436]
[1738272813677,0.62116528,3243.7,3243.6,3.2078]
[1738272813875,0.62116528,3243.7,3243.6,3.82436]
[1738272814178,0.62116528,3243.7,3243.6,3.2078]
[1738272814480,0.62116528,3243.7,3243.6,3.82436]
[1738272815378,0.00462528,3243.7,3243.6,3.82436]
[1738272815578,0.62116528,3243.7,3243.6,3.82436]
[1738272816172,0.00462528,3243.7,3243.6,3.82436]
[1738272823869,0.62116528,3243.7,3243.6,3.82436]
[1738272825075,0.00462528,3243.7,3243.6,3.82436]
[1738272825773,0.62116528,3243.7,3243.6,3.82436]
[1738272826387,0.00462528,3243.7,3243.6,3.82436]
[1738272826882,0.62116528,3243.7,3243.6,3.2078]
[1738272828184,0.61662,3243.3,3243.2,3.2078]
[1738272828381,0.5,3243.3,3243.0,0.00462528]
[1738272828595,0.61666,3243.1,3243.0,0.00462528]
[1738272833989,1.11666,3243.1,3243.0,0.00462528]
[1738272838184,4.32446,3243.1,3243.0,0.00462528]
[1738272838390,4.32446,3243.1,3243.0,5.28e-06]
[1738272839279,9.32446,3243.1,3243.0,5.28e-06]
[1738272844186,10.32646,3243.1,3243.0,5.28e-06]
[1738272845798,5.32646,3243.1,3243.0,5.28e-06]
[1738272846493,10.32646,3243.1,3243.0,5.28e-06]
[1738272847503,9.7098,3243.1,3241.5,3.2078]
[1738272847800,0.61702,3241.2,3241.1,14.255]
[1738272849098,0.617,3241.3,3241.2,0.61702]
[1738272849296,0.617,3241.3,3241.1,14.87203]
[1738272849691,0.00462528,3241.5,3241.1,14.255]
[1738272849904,0.61701,3241.3,3241.1,14.87203]
[1738272850997,0.61701,3241.3,3241.1,0.61703]
[1738272851597,1.54704528,3241.5,3241.0,3.2078]
[1738272851897,0.61703,3241.2,3241.1,0.61704]
[1738272852200,0.5,3241.4,3241.0,3.2078]
[1738272852403,0.617,3241.3,3241.2,0.61702]
[1738272852705,0.5,3241.4,3241.0,3.2078]
[1738272852906,0.61701,3241.3,3241.0,3.2078]
[1738272853108,0.5,3241.4,3241.1,0.61702]
[1738272853403,0.61702,3241.2,3241.1,0.61702]
[1738272854802,0.61704,3241.1,3241.0,3.82486]
[1738272855009,0.61703,3241.2,3241.1,0.61704]
[1738272855511,0.61701,3241.3,3241.1,0.61702]
[1738272855702,0.61701,3241.3,3241.2,0.61702]
[1738272856316,0.5,3241.4,3241.1,0.61703]
[1738272856518,0.5,3241.4,3241.0,3.2078]
[1738272856714,0.61701,3241.3,3241.0,3.2078]
[1738272857019,0.61701,3241.3,3241.1,0.61704]
[1738272857417,0.61701,3241.3,3241.0,3.2078]
[1738272857618,0.61699,3241.4,3241.2,0.61701]
[1738272857921,0.617,3241.3,3241.2,0.61701]
[1738272858715,0.00462528,3241.5,3241.2,0.61701]
[1738272859023,0.61704,3241.2,3241.0,3.82485]
[1738272860621,0.61701,3241.3,3241.1,0.61702]
[1738272860917,0.61701,3241.3,3241.2,0.61702]
[1738272861116,0.00462528,3241.5,3241.3,0.61699]
[1738272861320,0.61698,3241.4,3241.3,0.61699]
[1738272861822,0.61701,3241.3,3241.1,0.61702]
[1738272862024,0.00462528,3241.5,3241.0,3.2078]
[1738272862527,0.61699,3241.4,3241.2,0.61701]
[1738272863723,0.5,3241.3,3241.2,0.61701]
[1738272864420,1.117,3241.3,3241.2,0.61701]
[1738272864818,0.5,3241.3,3241.2,0.61701]
[1738272865012,1.117,3241.3,3241.2,0.61701]
[1738272865222,0.5,3241.3,3241.2,0.61701]
[1738272869623,1.117,3241.4,3241.3,0.617]
[1738272869923,0.5,3241.4,3241.3,0.617]
[1738272872727,1.11698,3241.4,3241.3,0.617]
[1738272875123,0.5,3241.4,3241.3,3.26857089]
[1738272878833,0.50462528,3241.5,3241.4,0.61698]
[1738272879033,0.50462528,3241.5,3241.4,3.82478]
[1738272879231,1.12158528,3241.5,3241.4,3.82478]
[1738272879730,0.50462528,3241.5,3241.4,3.82478]
[1738272880331,1.12158528,3241.5,3241.4,3.2078]
[1738272880830,1.12158528,3241.5,3241.4,3.82478]
[1738272881022,1.12158528,3241.5,3241.4,3.2078]
[1738272881427,0.50462528,3241.5,3241.4,3.82478]
[1738272886130,0.50462528,3241.5,3241.4,8.82478]
[1738272887724,0.50462528,3241.5,3241.4,3.82478]
[1738272888235,0.50462528,3241.5,3241.4,8.82478]
[1738272888539,0.50462528,3241.5,3241.4,3.82478]
[1738272895737,0.50236744,3241.5,3241.4,3.82478]
[1738272898447,0.5394,3241.8,3241.4,8.2078]
[1738272898654,1.14162,3242.3,3242.2,0.61683]
[1738272900446,0.5248,3242.3,3242.2,0.61683]
[1738272900841,1.14161,3242.3,3242.2,0.61683]
[1738272904053,0.5248,3242.3,3242.2,0.61683]
[1738272906552,0.5248,3242.3,3242.2,1.87309445]
[1738272908045,0.5318,3242.5,3242.2,1.25626445]
[1738272908351,0.5318,3242.5,3242.4,5.08085445]
[1738272908953,0.5318,3242.5,3242.4,5.57345445]
[1738272910752,0.5318,3242.5,3242.4,6.97040016]
[1738272912354,0.4998,3243.0,3242.4,9.43755016]
[1738272912555,0.4998,3243.0,3242.9,5.86101016]
[1738272912754,0.4998,3243.0,3242.9,6.47771016]
[1738272913953,0.5095,3243.2,3243.1,0.61666]
[1738272914153,1.12614,3243.2,3243.1,0.61666]
[1738272914551,0.5095,3243.2,3243.1,0.61666]
[1738272915058,1.12614,3243.2,3243.1,0.61666]
[1738272915457,0.5095,3243.2,3243.1,0.61666]
[1738272916948,1.12614,3243.2,3243.1,0.61666]
[1738272917553,1.12614,3243.2,3242.9,3.2078]
[1738272917554,1.0366,3243.2,3242.9,3.2078]
[1738272917758,0.61668,3243.0,3242.9,3.2078]
[1738272917953,0.61668,3243.0,3242.9,3.8245]
[1738272918661,1.0366,3243.2,3242.9,5.86101016]
[1738272918858,1.65325,3243.2,3243.1,0.61666]
[1738272922961,1.0366,3243.2,3243.1,0.61666]
[1738272923160,1.65324,3243.2,3243.1,0.61666]
[1738272924162,1.0366,3243.2,3243.1,0.61666]
[1738272924857,0.5271,3243.2,3243.1,0.61666]
[1738272925059,0.00462528,3243.3,3243.2,0.61664]
[1738272925362,0.00462528,3243.3,3243.2,3.26985016]
[1738272925867,0.5176,3243.8,3243.7,0.61654]
[1738272926055,0.5176,3243.8,3243.7,6.47755016]
[1738272926257,1.13412,3243.8,3243.7,6.47755016]
[1738272926456,1.65082,3243.8,3243.7,6.47755016]
[1738272926864,1.0343,3243.8,3243.7,6.47755016]
[1738272927360,1.65082,3243.8,3243.7,6.47755016]
[1738272927958,1.65082,3243.8,3243.7,3.2078]
[1738272929566,1.65082,3243.8,3243.7,3.82434]
[1738272929754,0.5176,3243.8,3243.7,6.47755016]
[1738272946975,1.13412,3243.8,3243.7,6.47755016]
[1738272947172,1.62992,3243.8,3243.7,3.82434]
[1738272948072,1.0134,3243.8,3243.7,3.82434]
[1738272948270,1.0134,3243.8,3243.7,6.47755016]
[1738272949067,0.5176,3243.8,3243.7,6.47755016]
[1738272964988,1.13412,3243.8,3243.7,6.47755016]
[1738272965288,1.13412,3243.8,3243.7,3.82434]
[1738272965485,0.5176,3243.8,3243.7,3.82434]
[1738272968282,1.13412,3243.8,3243.7,3.82434]
[1738272968591,1.13412,3243.8,3243.7,5.07934528]
[1738272968787,0.5176,3243.8,3243.7,5.07934528]
[1738272973284,1.13412,3243.8,3243.7,5.07934528]
[1738272973484,0.5176,3243.8,3243.7,5.07934528]
[1738272979789,0.00462528,3244.1,3244.0,0.61649]
[1738272979995,0.00462528,3244.1,3244.0,3.12650056]
[1738272980787,5.28e-06,3244.1,3244.0,3.12650056]
[1738272982195,0.5072,3244.4,3244.3,0.61643]
[1738272982488,0.5072,3244.4,3244.3,5.07923528]
[1738272982794,0.5072,3244.4,3244.3,6.47373979]
[1738272985290,0.53292528,3244.7,3244.3,6.47373979]
[1738272985497,0.53292528,3244.7,3244.6,3.26587979]
[1738273004616,0.53292528,3244.7,3244.6,1.87047987]
[1738273008919,0.61622,3245.4,3244.6,2.50821974]
[1738273009216,1.0411,3245.3,3245.2,0.61626]
[1738273009422,1.65734,3245.3,3245.2,3.82406]
[1738273009914,1.65734,3245.3,3245.2,4.46190987]
[1738273010111,1.65734,3245.3,3245.2,1.25410987]
[1738273017924,1.65734,3245.3,3245.2,1.87036987]
[1738273020426,1.65734,3245.3,3245.1,0.61627]
[1738273020427,0.61628,3245.2,3245.1,0.61627]
[1738273022224,0.61628,3245.1,3245.0,1.87038987]
[1738273022418,1.13718,3245.1,3245.0,1.87038987]
[1738273022626,0.61632,3244.9,3244.8,1.87042987]
[1738273024131,0.61632,3244.9,3244.8,1.25410987]
[1738273024330,1.54093,3244.7,3244.3,0.00462528]
[1738273024532,1.87051987,3244.4,3244.3,0.00462528]
[1738273025124,6.25410987,3244.4,3243.8,4.46190987]
[1738273025323,1.5379,3244.6,3243.8,5.07842987]
[1738273025324,0.61651,3243.9,3243.8,5.07842987]
[1738273025629,0.61651,3244.0,3243.9,0.61648]
[1738273025828,0.61651,3244.0,3243.9,1.87058987]
[1738273026024,1.25410987,3244.4,3243.9,1.87058987]
[1738273026226,0.6163,3245.0,3244.9,0.6163]
[1738273026431,1.15399,3245.1,3245.0,0.6163]
[1738273026632,0.5377,3245.1,3245.0,3.8241]
[1738273027025,1.25410987,3245.5,3245.0,3.2078]
[1738273027231,1.15393,3245.4,3245.3,0.61622]
[1738273027628,0.5377,3245.4,3245.3,1.87032987]
[1738273027833,1.15392,3245.4,3245.3,1.87032987]
[1738273028432,1.027,3245.4,3245.3,1.87032987]
[1738273028735,0.4893,3245.4,3245.3,0.61622]
[1738273031830,0.00462528,3245.6,3245.5,0.6162]
[1738273032031,2.64886314,3246.7,3245.5,0.6162]
[1738273032032,0.61604,3246.4,3245.5,3.2078]
[1738273032238,1.5,3246.6,3246.0,3.2078]
[1738273032435,2.11601,3246.6,3246.5,0.61601]
[1738273032633,0.61602,3246.5,3246.4,0.61601]
[1738273032831,2.116,3246.6,3246.5,0.61601]
[1738273033240,1.5,3246.6,3246.5,0.61601]
[1738273033735,0.61605,3246.4,3246.3,0.61604]
[1738273034435,0.61605,3246.4,3246.2,0.62068528]
[1738273034842,0.61605,3246.4,3246.2,0.00462528]
[1738273035030,0.61605,3246.4,3246.3,0.61605]
[1738273035330,0.61603,3246.5,3246.2,0.00462528]
[1738273035534,0.61603,3246.5,3246.3,0.61603]
[1738273035734,0.61601,3246.5,3246.3,0.61603]
[1738273036138,0.61603,3246.4,3246.3,0.61603]
[1738273036537,1.5,3246.6,3246.2,0.00462528]
[1738273036839,1.5,3246.6,3246.2,0.62068528]
[1738273037335,0.61605,3246.4,3246.3,0.61604]
[1738273037532,0.61601,3246.5,3246.2,0.62067528]
[1738273037733,0.61605,3246.4,3246.2,0.62067528]
[1738273038535,1.5,3246.6,3246.2,0.62067528]
[1738273038737,0.61605,3246.3,3246.2,0.62067528]
[1738273038939,0.00462528,3246.9,3246.8,0.61596]
[1738273039237,0.00462528,3246.9,3246.8,6.47262314]
[1738273050047,0.00755847,3246.9,3246.8,6.47262314]
[1738273063852,0.62349847,3246.9,3246.8,6.47262314]
[1738273065055,0.00755847,3246.9,3246.8,6.47262314]
[1738273065548,0.51765847,3246.9,3246.8,6.47262314]
[1738273065856,1.13359847,3246.9,3246.8,6.47262314]
[1738273066045,0.51765847,3246.9,3246.8,6.47262314]
[1738273066246,1.13359847,3246.9,3246.8,6.47262314]
[1738273067455,1.13359847,3246.9,3246.8,5.85666314]
[1738273068456,1.13359847,3246.9,3246.8,3.2078]
[1738273076060,0.61597,3246.7,3246.6,0.61599]
[1738273076253,0.61599,3246.6,3246.5,6.47266314]
[1738273076563,0.61599,3246.6,3246.5,2.64886314]
[1738273082272,1.0514,3246.8,3246.2,2.65348842]
[1738273082459,0.61605,3246.3,3246.2,3.26954842]
[1738273082666,0.61605,3246.3,3246.2,3.26955842]
[1738273083461,0.61605,3246.3,3246.2,2.65348842]
[1738273083861,0.61605,3246.3,3246.2,0.00462528]
[1738273085167,0.61605,3246.3,3246.2,2.65348842]
[1738273086462,0.61605,3246.3,3246.2,3.26955842]
[1738273086664,0.61604,3246.4,3246.3,0.61603]
[1738273086967,0.5395,3246.5,3246.3,0.5309]
[1738273087166,0.00755847,3246.9,3246.8,0.61596]
[1738273087370,3.2078,3247.9,3246.8,3.2078]
[1738273087676,0.61577,3247.8,3247.7,0.61578]
[1738273087966,0.61577,3247.8,3247.7,3.26464314]
[1738273088170,3.2078,3247.9,3247.7,2.64886314]
[1738273088470,3.2078,3247.9,3247.8,0.61577]
[1738273090267,3.2078,3247.9,3247.7,2.64886314]
[1738273090268,0.61876952,3248.1,3247.7,2.64886314]
[1738273090470,0.61876952,3248.1,3248.0,2.64886314]
[1738273091274,0.61876952,3248.1,3248.0,3.26459314]
[1738273091476,0.61876952,3248.1,3248.0,2.64886314]
[1738273093373,0.00305952,3248.1,3248.0,3.26459314]
[1738273093575,0.61876952,3248.1,3248.0,3.26459314]
[1738273093968,0.00305952,3248.1,3248.0,3.26459314]
[1738273094477,0.61876952,3248.1,3248.0,3.26459314]
[1738273096079,0.61876952,3248.1,3248.0,2.64886314]
[1738273096370,0.61876952,3248.1,3248.0,3.26459314]
[1738273097171,0.61876952,3248.1,3248.0,2.64886314]
[1738273099174,0.61876952,3248.1,3248.0,3.26459314]
[1738273101379,0.61876952,3248.1,3248.0,2.64886314]
[1738273102669,0.61876952,3248.1,3248.0,3.26459314]
[1738273103069,0.61876952,3248.1,3248.0,2.64886314]
[1738273103467,0.61876952,3248.1,3248.0,3.26459314]
[1738273103878,0.61876952,3248.1,3248.0,2.64886314]
[1738273105376,0.61876952,3248.1,3248.0,3.26459314]
[1738273105582,0.61876952,3248.1,3248.0,2.64886314]
[1738273108082,0.61876952,3248.1,3248.0,3.26459314]
[1738273109773,0.61876952,3248.1,3248.0,2.64886314]
[1738273109977,0.61876952,3248.1,3248.0,3.26459314]
[1738273110382,0.00305952,3248.1,3248.0,3.26459314]